fUSD/lending_fUSD_20260322
["ID","MTS","AMOUNT","RATE_DAILY","PERIOD"]
[408728585,1774175432296,-500.0,0.00012527,2]
[408728586,1774175432305,-500.0,0.00012527,2]
[408728587,1774175432314,-500.0,0.00012527,2]
[408728588,1774175432323,-500.0,0.00012527,2]
[408728589,1774175432332,-500.0,0.00012527,2]
[408728590,1774175432341,-307.86812449,0.00012527,2]
[408728591,1774175432350,-500.0,0.00012527,2]
[408728592,1774175432359,-500.0,0.00012527,2]
[408728593,1774175432368,-364.60294237,0.00012527,2]
[408728594,1774175432377,-500.0,0.00012527,2]
[408728595,1774175432386,-500.0,0.00012527,2]
[408728596,1774175432396,-500.0,0.00012527,2]
[408728597,1774175432406,-500.0,0.00012527,2]
[408728598,1774175432415,-500.0,0.00012527,2]
[408728599,1774175432424,-500.0,0.00012527,2]
[408728600,1774175432433,-500.0,0.00012527,2]
[408728601,1774175432443,-500.0,0.00012527,2]
[408728602,1774175432452,-500.0,0.00012527,2]
[408728603,1774175432461,-500.0,0.00012527,2]
[408728604,1774175432470,-500.0,0.00012527,2]
[408728605,1774175432480,-500.0,0.00012527,2]
[408728606,1774175432489,-500.0,0.00012527,2]
[408728607,1774175432502,-500.0,0.00012527,2]
[408728608,1774175432511,-500.0,0.00012527,2]
[408728609,1774175432520,-500.0,0.00012527,2]
[408728610,1774175432529,-500.0,0.00012527,2]
[408728611,1774175432539,-500.0,0.00012527,2]
[408728612,1774175432548,-500.0,0.00012527,2]
[408728613,1774175432558,-500.0,0.00012527,2]
[408728614,1774175432567,-500.0,0.00012527,2]
[408728615,1774175432577,-500.0,0.00012527,2]
[408728616,1774175432586,-500.0,0.00012527,2]
[408728617,1774175432595,-500.0,0.00012527,2]
[408728618,1774175432604,-500.0,0.00012527,2]
[408728619,1774175432613,-500.0,0.00012527,2]
[408728620,1774175432622,-500.0,0.00012527,2]
[408728621,1774175432632,-500.0,0.00012527,2]
[408728622,1774175432641,-500.0,0.00012527,2]
[408728623,1774175432650,-500.0,0.00012527,2]
[408728624,1774175432660,-500.0,0.00012527,2]
[408728625,1774175432669,-500.0,0.00012527,2]
[408728626,1774175432678,-500.0,0.00012527,2]
[408728627,1774175432687,-500.0,0.00012527,2]
[408728628,1774175432696,-500.0,0.00012527,2]
[408728629,1774175432705,-500.0,0.00012527,2]
[408728630,1774175432714,-500.0,0.00012527,2]
[408728631,1774175432723,-500.0,0.00012527,2]
[408728632,1774175432732,-500.0,0.00012527,2]
[408728633,1774175432742,-500.0,0.00012527,2]
[408728634,1774175432752,-500.0,0.00012527,2]
[408728635,1774175432761,-500.0,0.00012527,2]
[408728636,1774175432770,-500.0,0.00012527,2]
[408728637,1774175432779,-500.0,0.00012527,2]
[408728638,1774175432788,-182.04898734,0.00012527,2]
[408728639,1774175432797,-500.0,0.00012527,2]
[408728640,1774175432806,-500.0,0.00012527,2]
[408728641,1774175432816,-500.0,0.00012527,2]
[408728642,1774175432825,-500.0,0.00012527,2]
[408728643,1774175432834,-500.0,0.00012527,2]
[408728644,1774175432844,-190.62420799,0.00012527,2]
[408728645,1774175432853,-345329.83239237,0.00012528,2]
[408728646,1774175437797,-428.8974551,0.00012528,2]
[408728647,1774175437809,-53426.2549039,0.00012528,2]
[408728648,1774175437820,-689.91313385,0.00012528,2]
[408728649,1774175437852,-4897.49151961,0.00012528,2]
[408728650,1774175437863,-2829.29566459,0.00012528,2]
[408728651,1774175437875,-732268.52133058,0.00012528,2]
[408728652,1774175437884,-199.70993709,0.00012563,2]
[408728653,1774175437894,-500.0,0.00012573,2]
[408728654,1774175437903,-500.0,0.00012573,2]
[408728655,1774175437913,-500.0,0.00012573,2]
[408728656,1774175437922,-574.62700701,0.00012573,2]
[408728657,1774175437931,-500.0,0.00012573,2]
[408728658,1774175437940,-500.0,0.00012573,2]
[408728659,1774175437951,-1520.88355384,0.00012573,2]
[408728660,1774175437960,-2429.8807,0.000126,2]
[408728661,1774175437969,-150.90182018,0.000126,2]
[408728662,1774175437979,-152.38710386,0.000126,2]
[408728663,1774175437988,-152.81423118,0.000126,2]
[408728664,1774175437997,-150.0,0.000126,2]
[408728665,1774175438007,-700.0,0.000126,4]
[408728666,1774175438016,-180.21828672,0.00012627,2]
[408728668,1774175438025,-299.99,0.00012628,2]
[408728670,1774175438034,-9999.99,0.00012628,2]
[408728671,1774175438044,-150.99,0.00012628,2]
[408728673,1774175438053,-9999.99,0.00012628,2]
[408728675,1774175438063,-999.99,0.00012628,2]
[408728677,1774175438072,-150.99,0.00012628,2]
[408728679,1774175438082,-2114.21,0.00012628,2]
[408728681,1774175438091,-1821.3925,0.00012628,2]
[408728683,1774175438100,-2500.0,0.00012628,2]
[408728685,1774175438110,-175.84,0.00012628,2]
[408728700,1774175438239,-4809.802,0.00012628,2]
[408728703,1774175438255,-1055.24,0.00012628,2]
[408728705,1774175438264,-1421.99914051,0.00012629,2]
[408728707,1774175438273,-10028.32990291,0.00012629,2]
[408728709,1774175438282,-1520.88355384,0.00012673,2]
[408728711,1774175438292,-1719.36702187,0.00012673,2]
[408728713,1774175438301,-243.48282567,0.00012673,2]
[408728714,1774175438310,-529.31113527,0.00012673,2]
[408728716,1774175438319,-150.81800731,0.00012673,2]
[408728719,1774175438329,-4095.39666838,0.00012673,2]
[408728721,1774175438339,-1100.0,0.000127,4]
[408728723,1774175438348,-188.17,0.00012707,2]
[408728725,1774175438357,-1000.0,0.00012719,2]
[408728727,1774175438367,-151.0,0.0001272,2]
[408728729,1774175438376,-151.0,0.0001272,2]
[408728731,1774175438386,-151.0,0.0001272,2]
[408728733,1774175438395,-151.0,0.0001272,2]
[408728735,1774175438405,-151.0,0.0001272,2]
[408728737,1774175438414,-151.0,0.0001272,2]
[408728739,1774175438423,-151.0,0.0001272,2]
[408728741,1774175438432,-151.0,0.0001272,2]
[408728743,1774175438441,-151.0,0.0001272,2]
[408728744,1774175438451,-151.0,0.0001272,2]
[408728746,1774175438460,-151.0,0.0001272,2]
[408728748,1774175438469,-151.0,0.0001272,2]
[408728750,1774175438478,-151.0,0.0001272,2]
[408728752,1774175438487,-151.0,0.0001272,2]
[408728754,1774175438499,-151.0,0.0001272,2]
[408728756,1774175438509,-151.0,0.0001272,2]
[408728758,1774175438518,-153.30329368,0.0001272,2]
[408728760,1774175438527,-32984.9071,0.00012728,2]
[408728762,1774175438537,-1000.0,0.00012729,2]
[408728764,1774175438547,-306259.86932243,0.00012729,2]
[408728765,1774175438558,-696719.22061691,0.00012729,2]
[408728766,1774175438580,-1437.67372447,0.00012729,2]
[408728768,1774175440024,-807.438462,0.00012729,2]
[408728769,1774175440079,-494775.79787419,0.00012729,2]
[408728770,1774175440088,-500.61388542,0.00012773,2]
[408728771,1774175440098,-1500.0,0.000128,4]
[408728772,1774175440107,-195691.77,0.00012814,2]
[408728773,1774175440117,-7404.48216661,0.00012854,2]
[408728774,1774175440126,-1900.0,0.000129,4]
[408728775,1774175440135,-1055.24,0.00012902,2]
[408728776,1774175440146,-152.93,0.00012915,2]
[408728777,1774175440155,-5642.82862896,0.00013,2]
[408728778,1774175440165,-3171.13653461,0.0001305,2]
[408728779,1774175440174,-188.17,0.0001307,2]
[408728780,1774175440184,-501.45694581,0.00013121,2]
[408728781,1774175440193,-1055.24,0.00013176,2]
[408728782,1774175440205,-7404.48216661,0.00013235,2]
[408728783,1774175440214,-5000.0,0.00013302,2]
[408728784,1774175440223,-4615.83315592,0.00013302,2]
[408728785,1774175440232,-5000.0,0.00013302,2]
[408728786,1774175440242,-250.0,0.00013369,2]
[408728787,1774175440251,-188.17,0.00013433,2]
[408728788,1774175440260,-1055.24,0.0001345,2]
[408728789,1774175440269,-152.93,0.00013595,2]
[408728790,1774175440278,-255.0,0.00013615,2]
[408728791,1774175440287,-7404.48216661,0.00013615,2]
[408728792,1774175440296,-420.0,0.00013685,2]
[408728793,1774175440306,-420.0,0.00013685,2]
[408728794,1774175440315,-500.0,0.00013698,2]
[408728795,1774175440324,-500.0,0.00013698,2]
[408728796,1774175440334,-500.0,0.00013698,2]
[408728797,1774175440343,-513.40658707,0.00013698,2]
[408728798,1774175440352,-500.0,0.00013698,2]
[408728799,1774175440362,-500.0,0.00013698,2]
[408728800,1774175440372,-587.11880286,0.00013698,2]
[408728801,1774175440381,-500.0,0.00013698,2]
[408728802,1774175440390,-500.0,0.00013698,2]
[408728803,1774175440400,-500.0,0.00013698,2]
[408728804,1774175440409,-500.0,0.00013698,2]
[408728805,1774175440418,-279.58766334,0.00013698,2]
[408728806,1774175440427,-500.0,0.00013698,2]
[408728807,1774175440436,-500.0,0.00013698,2]
[408728808,1774175440445,-500.0,0.00013698,2]
[408728809,1774175440454,-500.0,0.00013698,2]
[408728810,1774175440464,-500.0,0.00013698,2]
[408728811,1774175440473,-500.0,0.00013698,2]
[408728812,1774175440482,-500.0,0.00013698,2]
[408728813,1774175440491,-500.0,0.00013698,2]
[408728814,1774175440501,-500.0,0.00013698,2]
[408728815,1774175440514,-416.73502406,0.00013698,2]
[408728816,1774175440523,-500.0,0.00013698,2]
[408728817,1774175440532,-500.0,0.00013698,2]
[408728818,1774175440543,-500.0,0.00013698,2]
[408728819,1774175440553,-513.07375623,0.00013698,2]
[408728820,1774175440562,-500.0,0.00013698,2]
[408728821,1774175440572,-500.0,0.00013698,2]
[408728822,1774175440583,-500.0,0.00013698,2]
[408728823,1774175440592,-500.0,0.00013698,2]
[408728824,1774175440600,-500.0,0.00013698,2]
[408728825,1774175440610,-500.0,0.00013698,2]
[408728826,1774175440619,-500.0,0.00013698,2]
[408728828,1774175440628,-500.0,0.00013698,2]
[408728830,1774175440637,-571.85993226,0.00013698,2]
[408728832,1774175440648,-500.0,0.00013698,2]
[408728834,1774175440657,-500.0,0.00013698,2]
[408728836,1774175440666,-500.0,0.00013698,2]
[408728838,1774175440675,-500.0,0.00013698,2]
[408728839,1774175440685,-500.0,0.00013698,2]
[408728840,1774175440694,-500.0,0.00013698,2]
[408728841,1774175440703,-512.39065529,0.00013698,2]
[408728842,1774175440713,-520.83,0.00013698,2]
[408728843,1774175440722,-520.83,0.00013698,2]
[408728844,1774175440731,-520.83,0.00013698,2]
[408728845,1774175440740,-520.83,0.00013698,2]
[408728846,1774175440750,-520.83,0.00013698,2]
[408728847,1774175440759,-520.83,0.00013698,2]
[408728848,1774175440769,-520.83,0.00013698,2]
[408728849,1774175440778,-520.83,0.00013698,2]
[408728850,1774175440787,-520.83,0.00013698,2]
[408728851,1774175440797,-520.83,0.00013698,2]
[408728852,1774175440806,-520.83,0.00013698,2]
[408728853,1774175440815,-520.83,0.00013698,2]
[408728854,1774175440824,-520.83,0.00013698,2]
[408728855,1774175440834,-520.83,0.00013698,2]
[408728856,1774175440843,-520.83,0.00013698,2]
[408728857,1774175440852,-520.83,0.00013698,2]
[408728858,1774175440861,-520.83,0.00013698,2]
[408728859,1774175440870,-507.02157658,0.00013698,2]
[408728865,1774175440976,-514.93719248,0.00013698,2]
[408728866,1774175440999,-289.3873478,0.00013698,2]
[408728867,1774175441009,-500.0,0.00013698,2]
[408728868,1774175441018,-500.0,0.00013698,2]
[408728869,1774175441027,-607.96438655,0.00013698,2]
[408728870,1774175441037,-500.0,0.00013698,2]
[408728871,1774175441046,-452.41899014,0.00013698,2]
[408728872,1774175441056,-500.0,0.00013698,2]
[408728873,1774175441065,-591.71,0.00013699,2]
[408728874,1774175441074,-975.2,0.00013699,2]
[408728875,1774175441084,-500.0,0.00013699,2]
[408728876,1774175441094,-500.0,0.00013699,2]
[408728877,1774175441104,-500.0,0.00013699,2]
[408728878,1774175441113,-500.0,0.00013699,2]
[408728879,1774175441122,-500.0,0.00013699,2]
[408728880,1774175441131,-500.0,0.00013699,2]
[408728881,1774175441140,-419.75064279,0.00013699,2]
[408728882,1774175441150,-500.0,0.00013699,2]
[408728883,1774175441160,-500.0,0.00013699,2]
[408728884,1774175441169,-312.26124661,0.00013699,2]
[408728885,1774175441178,-151.09,0.000137,2]
[408728886,1774175441187,-402.35,0.000137,2]
[408728887,1774175441197,-214.15,0.000137,2]
[408728888,1774175441207,-1302.48,0.000137,2]
[408728889,1774175441217,-553.82,0.000137,2]
[408728890,1774175441227,-394.48,0.000137,2]
[408728891,1774175441236,-500.0,0.000137,2]
[408728892,1774175441246,-347.47666717,0.000137,2]
[408728893,1774175441256,-1680.0,0.00013719,2]
[408728894,1774175441266,-1055.24,0.00013724,2]
[408728895,1774175441275,-188.17,0.00013796,2]
[408728896,1774175441284,-170.96,0.0001396,2]
[408728897,1774175441294,-79016.05291952,0.0001399,2]
[408728898,1774175441303,-7404.48216661,0.00013996,2]
[408728899,1774175441312,-1055.24,0.00013998,2]
[408728900,1774175441321,-517.0,0.00014,2]
[408728901,1774175441330,-500.0,0.00014247,2]
[408728902,1774175441339,-500.0,0.00014247,2]
[408728903,1774175441348,-1001.53007131,0.00014247,2]
[408728904,1774175441357,-507.92423982,0.00014247,2]
[408728905,1774175441367,-1000.0,0.00014247,2]
[408728906,1774175441376,-500.0,0.00014247,2]
[408728907,1774175441385,-538.91632234,0.00014247,2]
[408728908,1774175441394,-980.94642187,0.00014248,2]
[408728909,1774175441403,-10028.32990288,0.00014259,2]
[408728910,1774175441414,-1055.24,0.00014272,2]
[408728911,1774175441423,-152.93,0.00014275,2]
[408728912,1774175441433,-243.48282566,0.00014287,2]
[408728913,1774175441442,-500.70382414,0.00014318,2]
[408728914,1774175441451,-500.0,0.00014318,2]
[408728915,1774175441461,-500.0,0.00014318,2]
[408728916,1774175441469,-500.4848322,0.00014318,2]
[408728917,1774175441479,-500.0,0.00014318,2]
[408728918,1774175441488,-7404.48216661,0.00014377,2]
[408728919,1774175441498,-975.2,0.00014384,2]
[408728920,1774175441510,-500.74920901,0.00014529,2]
[408728921,1774175441520,-500.43058459,0.00014529,2]
[408728922,1774175441529,-500.0,0.00014529,2]
[408728923,1774175441538,-1055.27612025,0.00014545,2]
[408728924,1774175441549,-7404.48216661,0.00014758,2]
[408728925,1774175441558,-1497.2940912,0.00014795,2]
[408728926,1774175441568,-433.0,0.00014805,2]
[408728927,1774175441577,-502.54227332,0.00014866,2]
[408728928,1774175441586,-1000.0,0.00014866,2]
[408728929,1774175441595,-152.93,0.00014954,2]
[408728930,1774175441605,-250.0,0.00015,2]
[408728931,1774175441614,-2063.71846388,0.00015,2]
[408728932,1774175441623,-2428.27013508,0.00015,14]
[408728933,1774175441633,-8034.12425603,0.00015,2]
[408728934,1774175441643,-1042.04499952,0.00015,7]
[408728935,1774175441652,-587.0,0.00015016,2]
[408728936,1774175441662,-587.0,0.00015016,2]
[408728937,1774175441681,-975.2,0.00015068,2]
[408728938,1774175441697,-1000.0,0.00015077,2]
[408728939,1774175441716,-2351.0,0.00015091,2]
[408728940,1774175441733,-7404.48216661,0.00015138,2]
[408728941,1774175441748,-1000.0,0.00015342,2]
[408728942,1774175441766,-1000.0,0.00015342,2]
[408728943,1774175441785,-1000.0,0.00015342,2]
[408728944,1774175441803,-1000.0,0.00015342,2]
[408728945,1774175441821,-1000.0,0.00015342,2]
[408728946,1774175441837,-1000.0,0.00015342,2]
[408728947,1774175441855,-1500.0,0.00015414,2]
[408728948,1774175441869,-4000.0,0.00015507,2]
[408728949,1774175441888,-7404.48216661,0.00015519,2]
[408728950,1774175441900,-1158.78645597,0.00015624,2]
[408728951,1774175441916,-1586.2600759,0.00015634,2]
[408728952,1774175441929,-152.93,0.00015634,2]
[408728953,1774175441943,-179.747701,0.0001568,7]
[408728954,1774175441959,-975.2,0.00015753,2]
[408728955,1774175441976,-300.0,0.000158,5]
[408728956,1774175441991,-591.71,0.00015862,2]
[408728957,1774175442005,-10028.32990288,0.00015888,2]
[408728958,1774175442020,-4000.0,0.00015895,2]
[408728959,1774175442036,-74178.16872089,0.000159,2]
[408728960,1774175442051,-300.0,0.000159,5]
[408728961,1774175442067,-3630.15350107,0.000159,2]
[408728962,1774175442083,-243.48282566,0.000159,2]
[408728963,1774175442098,-7404.48216661,0.000159,2]
[408728964,1774175442113,-2000.0,0.00015962,2]
[408728965,1774175442128,-250.0,0.00015979,2]
[408728966,1774175442143,-199.70993709,0.0001599,2]
[408728967,1774175442158,-1408300.5848942,0.00016,2]
[408728968,1774175442212,-37808.36663339,0.00016,2]
[408728969,1774175442276,-2205.71495633,0.00016,2]
[408728972,1774175443111,-262018.64596461,0.00016,2]
[408728973,1774175446173,-150.0,0.00014,2]
[408728974,1774175446182,-7738.13095108,0.00016,2]
[408728975,1774175446193,-14080.0,0.00016,2]
[408728976,1774175450377,150.0,0.00016,120]
[408728982,1774175546753,1923.93,0.00017,60]
[408728983,1774175554735,200.0,0.000118,4]
[408728984,1774175556825,500.0,0.000119,4]
[408728985,1774175635403,225.63,0.00016,120]
[408728992,1774175993004,7176.62,0.0001168,2]
[408728997,1774176113726,2729.52,0.00011507,2]
[408728998,1774176188555,175.21,0.00016,120]
[408729001,1774176401578,192.58860366,0.00011893,2]
[408729002,1774176455051,300.0,0.000115,4]
[408729003,1774176457178,700.0,0.000116,4]
[408729004,1774176459266,1100.0,0.000117,4]
[408729005,1774176461357,1500.0,0.000118,4]
[408729006,1774176463448,1900.0,0.000119,4]
[408729016,1774176632405,-277.0,0.00011978,2]
[408729017,1774176632422,-808.56,0.00011978,2]
[408729018,1774176632538,-1507.3084064,0.00011978,2]
[408729019,1774176632553,-1200.0,0.00011992,2]
[408729020,1774176632569,-500.0,0.00011993,2]
[408729021,1774176632584,-5000.0,0.00011993,2]
[408729022,1774176632600,-150.0,0.00012,2]
[408729023,1774176632616,-300.0,0.00012002,2]
[408729024,1774176632631,-300.0,0.00012002,2]
[408729025,1774176632646,-300.0,0.00012003,2]
[408729026,1774176632660,-300.0,0.00012003,2]
[408729027,1774176632675,-5000.0,0.00012004,2]
[408729028,1774176632689,-1633.04904236,0.00012004,2]
[408729029,1774176632704,-500.0,0.00012073,2]
[408729030,1774176632722,-502.16126991,0.00012073,2]
[408729031,1774176632737,-500.0,0.00012073,2]
[408729032,1774176632752,-503.85332488,0.00012073,2]
[408729033,1774176632766,-500.0,0.00012073,2]
[408729034,1774176632781,-266770.435,0.00012073,2]
[408729035,1774176632796,-2500.0,0.0001213,2]
[408729036,1774176632811,-39831.05074682,0.0001213,2]
[408729042,1774176637931,-500.0,0.00012129,2]
[408729043,1774176637941,-500.0,0.00012129,2]
[408729044,1774176637950,-182.66861831,0.00012129,2]
[408729045,1774176637961,-75.80914989,0.00012129,2]
[408729046,1774176637972,-330.98974336,0.00012129,2]
[408729047,1774176637981,-500.0,0.00012129,2]
[408729048,1774176637990,-219.01025664,0.00012129,2]
[408729049,1774176638002,-280.98974336,0.00012129,2]
[408729050,1774176638011,-500.0,0.00012129,2]
[408729051,1774176638020,-219.01025664,0.00012129,2]
[408729052,1774176638051,-280.98974336,0.00012129,2]
[408729053,1774176638061,-500.0,0.00012129,2]
[408729054,1774176638070,-500.0,0.00012129,2]
[408729055,1774176638079,-21.58643848,0.00012129,2]
[408729056,1774176638092,-468.11416207,0.00012129,2]
[408729057,1774176638101,-230.36070698,0.00012129,2]
[408729058,1774176638124,-269.63929302,0.00012129,2]
[408729059,1774176638133,-427.06936988,0.00012129,2]
[408729060,1774176638144,-72.93063012,0.00012129,2]
[408729061,1774176638154,-1260.58136547,0.0001213,2]
[408729062,1774176638185,-968.12794408,0.0001213,2]
[408729070,1774176640087,-2094.6244665,0.0001213,2]
[408729071,1774176640141,-798044.36457713,0.0001213,2]
[408729072,1774176640151,-12614.58118728,0.00012173,2]
[408729073,1774176640160,-166.66,0.00012199,2]
[408729074,1774176640170,-150.0,0.00012229,2]
[408729075,1774176640179,-1000.0,0.00012229,2]
[408729076,1774176640189,-180.21828672,0.00012229,2]
[408729077,1774176640199,-500.0,0.0001223,2]
[408729078,1774176640210,-9999.99,0.0001223,2]
[408729079,1774176640220,-9999.99,0.0001223,2]
[408729080,1774176640229,-44623.8,0.0001223,2]
[408729081,1774176640239,-299.99,0.0001223,2]
[408729082,1774176640248,-999.99,0.0001223,2]
[408729083,1774176640257,-150.99,0.0001223,2]
[408729084,1774176640267,-23272.78,0.0001223,2]
[408729085,1774176640276,-9999.99,0.0001223,2]
[408729086,1774176640286,-2114.21,0.0001223,2]
[408729087,1774176640295,-1547.55,0.0001223,2]
[408729088,1774176640304,-1189.26,0.0001223,2]
[408729089,1774176640313,-8450.15,0.0001223,2]
[408729090,1774176640323,-312.61,0.0001223,2]
[408729091,1774176640333,-9999.99,0.0001223,2]
[408729092,1774176640342,-337.12,0.0001223,2]
[408729093,1774176640351,-73919.94,0.0001223,2]
[408729094,1774176640361,-500.0,0.00012273,2]
[408729095,1774176640370,-574.62700701,0.00012273,2]
[408729096,1774176640380,-500.0,0.00012273,2]
[408729097,1774176640390,-500.0,0.00012273,2]
[408729098,1774176640399,-500.0,0.00012273,2]
[408729099,1774176640408,-13727.07430542,0.00012273,2]
[408729100,1774176640417,-2429.8807,0.00012278,2]
[408729101,1774176640426,-5568.195,0.00012278,2]
[408729102,1774176640437,-192.365,0.00012278,2]
[408729103,1774176640447,-26512.85342297,0.00012317,2]
[408729104,1774176640457,-500.0,0.0001232,2]
[408729105,1774176640467,-200.0,0.0001232,2]
[408729106,1774176640476,-500.0,0.0001232,2]
[408729107,1774176640486,-500.0,0.0001232,2]
[408729108,1774176640495,-232.10429188,0.0001232,2]
[408729109,1774176640504,-500.0,0.0001232,2]
[408729110,1774176640513,-500.0,0.0001232,2]
[408729111,1774176640523,-500.0,0.0001232,2]
[408729112,1774176640532,-500.0,0.0001232,2]
[408729113,1774176640541,-500.0,0.0001232,2]
[408729114,1774176640551,-500.0,0.0001232,2]
[408729115,1774176640560,-500.0,0.0001232,2]
[408729116,1774176640570,-500.0,0.0001232,2]
[408729117,1774176640579,-500.0,0.0001232,2]
[408729118,1774176640589,-500.0,0.0001232,2]
[408729119,1774176640598,-500.0,0.0001232,2]
[408729120,1774176640608,-500.0,0.0001232,2]
[408729121,1774176640617,-500.0,0.0001232,2]
[408729122,1774176640626,-500.0,0.0001232,2]
[408729123,1774176640635,-500.0,0.0001232,2]
[408729124,1774176640644,-500.0,0.0001232,2]
[408729125,1774176640654,-500.0,0.0001232,2]
[408729126,1774176640663,-500.0,0.0001232,2]
[408729128,1774176640672,-500.0,0.0001232,2]
[408729130,1774176640681,-500.0,0.0001232,2]
[408729132,1774176640691,-500.0,0.0001232,2]
[408729133,1774176640700,-500.0,0.0001232,2]
[408729135,1774176640709,-500.0,0.0001232,2]
[408729137,1774176640719,-500.0,0.0001232,2]
[408729139,1774176640728,-151.0,0.0001232,2]
[408729141,1774176640737,-151.0,0.0001232,2]
[408729143,1774176640746,-151.0,0.0001232,2]
[408729145,1774176640755,-151.0,0.0001232,2]
[408729147,1774176640764,-151.0,0.0001232,2]
[408729149,1774176640774,-151.0,0.0001232,2]
[408729151,1774176640783,-151.0,0.0001232,2]
[408729152,1774176640793,-151.0,0.0001232,2]
[408729154,1774176640803,-151.0,0.0001232,2]
[408729156,1774176640812,-151.0,0.0001232,2]
[408729158,1774176640821,-151.0,0.0001232,2]
[408729160,1774176640830,-151.0,0.0001232,2]
[408729162,1774176640840,-151.0,0.0001232,2]
[408729164,1774176640849,-151.0,0.0001232,2]
[408729166,1774176640858,-151.0,0.0001232,2]
[408729168,1774176640867,-151.0,0.0001232,2]
[408729170,1774176640880,-151.0,0.0001232,2]
[408729172,1774176640894,-151.0,0.0001232,2]
[408729174,1774176640903,-151.0,0.0001232,2]
[408729176,1774176640912,-151.0,0.0001232,2]
[408729177,1774176640923,-151.0,0.0001232,2]
[408729178,1774176640932,-151.0,0.0001232,2]
[408729179,1774176640941,-151.0,0.0001232,2]
[408729180,1774176640951,-151.0,0.0001232,2]
[408729181,1774176640960,-151.0,0.0001232,2]
[408729182,1774176640969,-151.0,0.0001232,2]
[408729183,1774176640978,-151.0,0.0001232,2]
[408729184,1774176640987,-151.0,0.0001232,2]
[408729185,1774176640997,-151.0,0.0001232,2]
[408729186,1774176641006,-151.0,0.0001232,2]
[408729187,1774176641016,-151.0,0.0001232,2]
[408729188,1774176641025,-151.0,0.0001232,2]
[408729189,1774176641035,-151.0,0.0001232,2]
[408729190,1774176641044,-151.0,0.0001232,2]
[408729191,1774176641053,-1821.3925,0.00012327,2]
[408729192,1774176641063,-1556.75337501,0.00012328,2]
[408729193,1774176641072,-243.48282567,0.00012328,2]
[408729194,1774176641082,-3041.76710768,0.00012328,2]
[408729195,1774176641091,-1938.3798,0.00012411,2]
[408729196,1774176641100,-383.48840786,0.00012418,2]
[408729197,1774176641110,-151.0,0.00012425,2]
[408729198,1774176641119,-1012.77724963,0.00012425,2]
[408729199,1774176641129,-899.33,0.00012426,2]
[408729200,1774176641138,-42964.46624312,0.00012427,2]
[408729201,1774176641147,-1000.0,0.00012428,2]
[408729202,1774176641157,-32984.9071,0.00012428,2]
[408729203,1774176641166,-867.25510997,0.00012459,2]
[408729204,1774176641175,-501.20346815,0.00012473,2]
[408729205,1774176641184,-500.0,0.00012504,2]
[408729206,1774176641193,-12614.58118723,0.00012587,2]
[408729207,1774176641203,-166.66,0.00012602,2]
[408729208,1774176641213,-500.56411595,0.00012621,2]
[408729209,1774176641224,-500.0,0.00012621,2]
[408729210,1774176641234,-13727.0743054,0.00012676,2]
[408729211,1774176641244,-899.33,0.000127,2]
[408729212,1774176641255,-259.82094409,0.00012778,2]
[408729213,1774176641264,-501.30450666,0.00012821,2]
[408729214,1774176641275,-1003.08076831,0.00012821,2]
[408729215,1774176641284,-508.47953738,0.00012821,2]